fUST/lending_fUST_20241204
["ID","MTS","AMOUNT","RATE_DAILY","PERIOD"]
[344050401,1733248527405,338.483297,0.00027396,2]
[344050402,1733248546732,162.0,0.00024,2]
[344050406,1733248599636,164.693518,0.00013973,2]
[344050407,1733248631237,184.55611,0.00026053,2]
[344050408,1733248679715,1149.9422608,0.00027618,2]
[344050410,1733248741511,24900.0,0.00027458,2]
[344050413,1733248789997,1285.3067042,0.00027399,2]
[344050414,1733248849271,428.864452,0.00027437,2]
[344050415,1733248917424,803.8051069,0.00027477,2]
[344050417,1733248963045,201.607095,0.00030137,120]
[344050418,1733249006469,1169.27083333,0.00028,2]
[344050419,1733249015299,1010.6004901,0.00027477,2]
[344050424,1733249231856,270.786637,0.00027458,2]
[344050425,1733249237122,-1521.71321941,0.00028098,2]
[344050426,1733249237144,-172.39900792,0.00028138,2]
[344050427,1733249237172,-1642.82298243,0.00028237,2]
[344050429,1733249246091,-4076.73897809,0.00028237,2]
[344050430,1733249246126,-3666.89001723,0.00028237,2]
[344050431,1733249246148,-300.0,0.00028407,2]
[344050432,1733249246170,-300.0,0.00028407,2]
[344050433,1733249246192,-270.786637,0.00028474,2]
[344050434,1733249246214,-6980.46671505,0.00028709,2]
[344050436,1733249275407,184.55611,0.0002672,2]
[344050437,1733249356422,3103.807,0.00028345,2]
[344050438,1733249367104,-3894.3950164,0.00028345,2]
[344050451,1733249432684,-300.0,0.00028821,2]
[344050452,1733249432694,-179.43780436,0.00028821,2]
[344050453,1733249432709,-120.56219564,0.00028821,2]
[344050454,1733249432719,-155.43518036,0.00029126,2]
[344050455,1733249432729,-4494.0,0.00029362,2]
[344050456,1733249432739,-237.91852482,0.00029363,2]
[344050502,1733249438601,-599.98798803,0.00029363,2]
[344050503,1733249438613,-9029.74251744,0.00029363,2]
[344050504,1733249438623,-314.7029031,0.000294,30]
[344050505,1733249438633,-150.0,0.00029418,2]
[344050507,1733249438643,-181.247009,0.00029423,2]
[344050508,1733249438652,-270.786637,0.0002949,2]
[344050509,1733249438662,-2043.30093345,0.00029689,2]
[344050510,1733249438674,-7824.34809684,0.00029689,2]
[344050511,1733249438684,-181.247009,0.00029698,2]
[344050512,1733249438693,-152.26,0.00029699,2]
[344050513,1733249438706,-155.01478344,0.00029715,2]
[344050514,1733249438716,-298.4799569,0.00029836,2]
[344050515,1733249438725,-9867.64903029,0.00029872,2]
[344050516,1733249438735,-1000.0,0.00029886,2]
[344050517,1733249438745,-1000.0,0.00029921,2]
[344050518,1733249438755,-1000.0,0.00029954,2]
[344050520,1733249438764,-707.77374799,0.00029956,2]
[344050521,1733249438774,-1000.0,0.00029956,2]
[344050522,1733249438785,-181.247009,0.00029973,2]
[344050523,1733249438795,-429.0,0.0003,20]
[344050524,1733249438804,-429.0,0.0003,20]
[344050525,1733249438814,-402.0,0.0003,2]
[344050526,1733249438827,-152.0,0.0003,2]
[344050527,1733249438837,-285.0,0.0003,2]
[344050528,1733249438847,-828.76258008,0.00030026,2]
[344050529,1733249438856,-1616.68944962,0.00030036,2]
[344050530,1733249438866,-1000.0,0.00030062,2]
[344050531,1733249438875,-1000.0,0.00030072,2]
[344050532,1733249438886,-666.0,0.00030073,2]
[344050533,1733249438896,-1000.0,0.00030075,2]
[344050534,1733249438905,-500.0,0.000301,32]
[344050535,1733249438915,-649.98,0.00030126,3]
[344050536,1733249438925,-2887.99,0.00030126,10]
[344050537,1733249438934,-2406.66,0.00030126,10]
[344050538,1733249438944,-2406.66,0.00030126,10]
[344050539,1733249438954,-155.82215627,0.00030135,2]
[344050540,1733249438963,-500.0,0.00030135,2]
[344050541,1733249438973,-267.57620041,0.00030135,2]
[344050542,1733249438982,-500.0,0.00030135,2]
[344050543,1733249438992,-500.0,0.00030135,2]
[344050544,1733249439001,-457.4978348,0.00030135,2]
[344050545,1733249439011,-517.771803,0.00030135,2]
[344050546,1733249439021,-500.0,0.00030135,2]
[344050547,1733249439030,-377.36163064,0.00030135,2]
[344050548,1733249439040,-500.0,0.00030135,2]
[344050549,1733249439050,-500.0,0.00030135,2]
[344050550,1733249439060,-500.0,0.00030135,2]
[344050551,1733249439071,-500.0,0.00030135,2]
[344050552,1733249439081,-500.0,0.00030135,2]
[344050553,1733249439091,-500.0,0.00030135,2]
[344050554,1733249439100,-279.71551792,0.00030135,2]
[344050555,1733249439110,-500.0,0.00030135,2]
[344050556,1733249439119,-171.52230487,0.00030136,2]
[344050557,1733249439128,-29191.98868789,0.00030136,2]
[344050558,1733249439138,-500.0,0.00030136,7]
[344050559,1733249439148,-500.0,0.00030136,7]
[344050560,1733249439158,-500.0,0.00030136,7]
[344050561,1733249439168,-1169.27083333,0.00030136,7]
[344050562,1733249439267,-1169.27083333,0.00030136,7]
[344050563,1733249439280,-1169.27083333,0.00030136,7]
[344050564,1733249439290,-500.0,0.00030136,7]
[344050565,1733249439301,-500.0,0.00030136,7]
[344050566,1733249439311,-500.0,0.00030136,7]
[344050567,1733249439321,-372.25017134,0.00030136,7]
[344050568,1733249439332,-500.0,0.00030136,7]
[344050569,1733249439341,-500.0,0.00030136,7]
[344050570,1733249439350,-500.0,0.00030136,7]
[344050571,1733249439360,-151.0,0.00030136,7]
[344050572,1733249439370,-151.0,0.00030136,7]
[344050573,1733249439379,-151.0,0.00030136,7]
[344050574,1733249439389,-151.0,0.00030136,7]
[344050575,1733249439398,-151.0,0.00030136,7]
[344050576,1733249439407,-151.0,0.00030136,7]
[344050577,1733249439417,-151.0,0.00030136,7]
[344050578,1733249439428,-151.0,0.00030136,7]
[344050579,1733249439437,-151.0,0.00030136,7]
[344050580,1733249439447,-500.0,0.00030136,7]
[344050581,1733249439457,-500.0,0.00030136,7]
[344050582,1733249439467,-296.02156317,0.00030136,7]
[344050583,1733249439476,-500.0,0.00030136,7]
[344050584,1733249439486,-176.53433958,0.00030136,7]
[344050585,1733249439496,-500.0,0.00030136,7]
[344050586,1733249439506,-500.0,0.00030136,7]
[344050587,1733249439515,-151.0,0.00030136,7]
[344050588,1733249439526,-151.0,0.00030136,7]
[344050589,1733249439535,-151.0,0.00030136,7]
[344050590,1733249439546,-279.81585,0.00030136,7]
[344050591,1733249439556,-500.0,0.00030136,7]
[344050592,1733249439567,-183.20910273,0.00030136,7]
[344050593,1733249439581,-316.79089727,0.00030136,7]
[344050594,1733249439591,-500.0,0.00030136,7]
[344050595,1733249439601,-500.0,0.00030136,7]
[344050596,1733249439610,-500.0,0.00030136,7]
[344050597,1733249439620,-264.78216762,0.00030136,7]
[344050598,1733249439632,-235.21783238,0.00030136,7]
[344050599,1733249439642,-500.0,0.00030136,7]
[344050600,1733249439652,-500.0,0.00030136,7]
[344050601,1733249439662,-277.82145536,0.00030136,7]
[344050602,1733249439672,-500.0,0.00030136,7]
[344050603,1733249439681,-151.0,0.00030136,7]
[344050604,1733249439691,-22.0112256,0.00030136,7]
[344050605,1733249439708,-133.8790084,0.00030136,7]
[344050606,1733249439718,-500.0,0.00030136,7]
[344050607,1733249439727,-151.0,0.00030136,7]
[344050608,1733249439737,-151.0,0.00030136,7]
[344050609,1733249439747,-199.213771,0.00030136,7]
[344050610,1733249439757,-500.0,0.00030136,7]
[344050611,1733249439767,-500.0,0.00030136,7]
[344050612,1733249439778,-500.0,0.00030136,7]
[344050613,1733249439788,-500.0,0.00030136,7]
[344050614,1733249439798,-508.27930988,0.00030136,7]
[344050615,1733249439807,-500.0,0.00030136,7]
[344050616,1733249439817,-500.0,0.00030136,7]
[344050617,1733249439829,-500.0,0.00030136,7]
[344050618,1733249439839,-500.0,0.00030136,7]
[344050619,1733249439848,-500.0,0.00030136,7]
[344050620,1733249439858,-151.0,0.00030136,7]
[344050621,1733249439868,-151.0,0.00030136,7]
[344050622,1733249439878,-151.0,0.00030136,7]
[344050623,1733249439887,-500.0,0.00030136,7]
[344050624,1733249439898,-500.0,0.00030136,7]
[344050625,1733249439907,-500.0,0.00030136,7]
[344050626,1733249439916,-500.0,0.00030136,7]
[344050627,1733249439926,-500.0,0.00030136,7]
[344050628,1733249439936,-500.0,0.00030136,7]
[344050629,1733249439946,-235.96103683,0.00030136,7]
[344050630,1733249439955,-500.0,0.00030136,7]
[344050631,1733249439964,-500.0,0.00030136,7]
[344050632,1733249439974,-500.0,0.00030136,7]
[344050633,1733249439984,-503.17925164,0.00030136,7]
[344050634,1733249439993,-500.0,0.00030136,7]
[344050635,1733249440003,-500.0,0.00030136,7]
[344050636,1733249440012,-500.0,0.00030136,7]
[344050637,1733249440022,-500.0,0.00030136,7]
[344050639,1733249440031,-500.0,0.00030136,7]
[344050640,1733249440041,-489.40692818,0.00030136,7]
[344050641,1733249440050,-500.0,0.00030136,7]
[344050642,1733249440060,-500.0,0.00030136,7]
[344050643,1733249440071,-500.0,0.00030136,7]
[344050644,1733249440080,-500.0,0.00030136,7]
[344050645,1733249440090,-500.0,0.00030136,7]
[344050646,1733249440099,-500.0,0.00030136,7]
[344050647,1733249440109,-500.0,0.00030136,7]
[344050648,1733249440118,-500.0,0.00030136,7]
[344050650,1733249440128,-500.0,0.00030136,7]
[344050651,1733249440137,-500.0,0.00030136,7]
[344050652,1733249440147,-500.0,0.00030136,7]
[344050653,1733249440157,-500.0,0.00030136,7]
[344050654,1733249440166,-500.0,0.00030136,7]
[344050655,1733249440175,-354.19808667,0.00030136,7]
[344050663,1733249440749,-214.432226,0.000286,2]
[344050664,1733249440759,-145.80191333,0.00030136,7]
[344050665,1733249440770,-500.0,0.00030136,7]
[344050666,1733249440782,-500.0,0.00030136,7]
[344050667,1733249440792,-1612.41,0.00030136,7]
[344050668,1733249440803,-1612.41,0.00030136,7]
[344050669,1733249440812,-1612.41,0.00030136,7]
[344050671,1733249440825,-1612.41,0.00030136,7]
[344050672,1733249440835,-516.58596834,0.00030136,7]
[344050673,1733249440847,-1095.82403166,0.00030136,7]
[344050674,1733249440857,-1612.41,0.00030136,7]
[344050675,1733249440867,-1612.41,0.00030136,7]
[344050676,1733249440877,-1612.41,0.00030136,7]
[344050677,1733249440887,-1612.41,0.00030136,7]
[344050678,1733249440897,-1612.41,0.00030136,7]
[344050679,1733249440907,-1612.41,0.00030136,7]
[344050680,1733249440916,-1612.41,0.00030136,7]
[344050681,1733249440926,-1612.41,0.00030136,7]
[344050682,1733249440936,-1612.41,0.00030136,7]
[344050683,1733249440946,-1612.41,0.00030136,7]
[344050684,1733249440956,-1612.41,0.00030136,7]
[344050685,1733249440965,-1612.41,0.00030136,7]
[344050686,1733249440974,-1612.41,0.00030136,7]
[344050687,1733249440984,-1612.41,0.00030136,7]
[344050688,1733249440994,-1272.57302518,0.00030136,7]
[344050689,1733249441007,-339.83697482,0.00030136,7]
[344050690,1733249441016,-469.06320776,0.00030136,7]
[344050745,1733249446629,-377.0,0.0003,2]
[344050747,1733249446639,-1604.44,0.00030126,10]
[344050749,1733249446648,-1143.34679224,0.00030136,7]
[344050751,1733249446657,-1612.41,0.00030136,7]
[344050753,1733249446666,-1612.41,0.00030136,7]
[344050754,1733249446676,-1612.57193792,0.00030136,7]
[344050755,1733249446685,-500.0,0.00030136,7]
[344050756,1733249446695,-500.0,0.00030136,7]
[344050757,1733249446708,-500.0,0.00030136,7]
[344050758,1733249446718,-500.0,0.00030136,7]
[344050759,1733249446727,-500.0,0.00030136,7]
[344050760,1733249446736,-151.0,0.00030136,7]
[344050761,1733249446746,-500.0,0.00030136,7]
[344050762,1733249446756,-500.0,0.00030136,7]
[344050763,1733249446765,-500.0,0.00030136,7]
[344050764,1733249446775,-500.0,0.00030136,7]
[344050765,1733249446784,-151.0,0.00030136,7]
[344050766,1733249446794,-500.0,0.00030136,7]
[344050767,1733249446803,-151.0,0.00030136,7]
[344050768,1733249446812,-500.0,0.00030136,7]
[344050769,1733249446821,-500.0,0.00030136,7]
[344050770,1733249446832,-151.0,0.00030136,7]
[344050771,1733249446841,-500.0,0.00030136,7]
[344050772,1733249446850,-500.0,0.00030136,7]
[344050773,1733249446859,-500.0,0.00030136,7]
[344050774,1733249446870,-500.0,0.00030136,7]
[344050775,1733249446879,-500.0,0.00030136,7]
[344050776,1733249446888,-500.0,0.00030136,7]
[344050777,1733249446898,-500.0,0.00030136,7]
[344050778,1733249446907,-500.0,0.00030136,7]
[344050779,1733249446916,-397.79510793,0.00030136,7]
[344050780,1733249446925,-199.133372,0.00030136,7]
[344050781,1733249446938,-9061.57,0.00030136,7]
[344050782,1733249446946,-9061.57,0.00030136,7]
[344050783,1733249446956,-1862.40971473,0.00030136,7]
[344050784,1733249455950,2985.22028812,0.00028,2]
[344050785,1733249455972,1174.54858956,0.00028,2]
[344050786,1733249464059,1950.03829124,0.00028,2]
[344050787,1733249464106,3049.96170876,0.00028,2]
[344050794,1733249937108,185.762213,0.00013973,2]
[344051254,1733250123070,5343.72152852,0.00027,6]
[344052661,1733250200652,252.248322,0.00027599,2]
[344053509,1733250248360,1054.9822005,0.00027574,2]
[344054326,1733250295743,660.0,0.00027574,2]
[344054869,1733250331738,5201.0547656,0.00027541,2]
[344055002,1733250340133,-178.44897474,0.00028099,2]
[344055578,1733250432088,-300.0,0.00028099,2]
[344055579,1733250432116,-300.0,0.00028099,2]
[344055580,1733250432154,-5498.95784785,0.000281,2]
[344055581,1733250440165,-3505.6994333,0.000281,2]
[344055582,1733250444100,-7801.71006399,0.000281,2]
[344055584,1733250489789,6506.42647811,0.00021,2]
[344055585,1733250490773,217.7949331,0.00028,2]
[344055588,1733250517990,975.37394393,0.00020377,2]
[344055591,1733250544392,185.762213,0.00013973,2]
[344055592,1733250545290,-3673.38468526,0.000281,2]
[344055593,1733250580447,268.314656,0.00028024,2]
[344055635,1733250632762,-711.8,0.00028498,2]
[344055636,1733250632774,-448.91999994,0.00028498,2]
[344055637,1733250632786,-697.86957676,0.00028498,2]
[344055638,1733250632795,-155.14941764,0.00028541,2]
[344055639,1733250632805,-886.30353988,0.00028602,2]
[344055667,1733250638868,-54.04737172,0.00028602,2]
[344055668,1733250638878,-179.60237971,0.000287,2]
[344055670,1733250638887,-179.6023797,0.00028735,2]
[344055671,1733250638897,-179.6023797,0.00028968,2]
[344055672,1733250638906,-300.0,0.00028999,2]
[344055673,1733250638915,-300.0,0.00028999,2]
[344055674,1733250638925,-7899.24548917,0.00029,7]
[344055676,1733250639092,-466.6991998,0.00029,7]
[344055685,1733250639191,-866.85667378,0.00029,7]
[344055692,1733250640610,-767.19863725,0.00029,7]
[344055693,1733250640620,-268.314656,0.00029061,2]
[344055694,1733250640629,-9483.94605979,0.00029336,2]
[344055695,1733250640639,-212.6978082,0.00029342,30]
[344055696,1733250640648,-500.0,0.00029477,2]
[344055697,1733250640658,-177.879171,0.00029542,2]
[344055698,1733250640668,-9483.94605979,0.00029739,2]
[344055699,1733250640678,-177.879171,0.0002991,2]
[344055700,1733250640688,-9483.9460598,0.0002995,2]
[344055701,1733250640697,-703.94865044,0.0002995,2]
[344055702,1733250640707,-155.00747088,0.00029968,2]
[344055703,1733250640716,-353.0,0.0003,2]
[344055704,1733250640726,-25000.0,0.0003,7]
[344055705,1733250640735,-153.0,0.0003,30]
[344055707,1733250640745,-153.0,0.0003,30]
[344055708,1733250640754,-153.0,0.0003,30]
[344055709,1733250640763,-155.0,0.0003,2]
[344055710,1733250640772,-2806.56796738,0.00030036,3]
[344055711,1733250640788,-268.44195015,0.00030036,3]
[344055712,1733250640799,-1160.85712796,0.00030036,3]
[344055713,1733250640808,-1033.16787204,0.00030036,2]
[344055720,1733250644843,2735.20724908,0.00028,2]
[344055732,1733250646879,-473.15003862,0.00030036,2]
[344055733,1733250646888,-204.51194447,0.0003009,10]
[344055734,1733250646925,-331.0,0.0003,2]
[344055735,1733250646935,-1749.31805553,0.0003009,10]
[344055736,1733250646947,-1293.17194448,0.0003009,10]
[344055737,1733250660185,287.3822369,0.00028,2]
[344055738,1733250660209,1118.83943309,0.00028,2]
[344055745,1733251161511,165.913444,0.00013973,2]
[344055749,1733251405225,380.0,0.00027631,2]
[344055751,1733251576713,434.9132656,0.00026853,2]
[344055752,1733251633126,-271.15637,0.0002834,2]
[344055753,1733251633151,-201.493723,0.0002834,2]
[344055754,1733251633175,-262.294775,0.0002834,11]
[344055755,1733251633198,-1185.0928831,0.00028567,2]
[344055756,1733251633222,-300.0,0.00028711,2]
[344055757,1733251633246,-1463.37805137,0.00028711,2]
[344055758,1733251637100,-222.81163822,0.00028711,2]
[344055759,1733251690863,2609.60920278,0.00028,2]
[344055760,1733251721501,271.1563709,0.00027703,2]
[344055761,1733251757482,296.91890773,0.00027496,2]
[344055762,1733251805518,2829.78851981,0.00027734,2]
[344055763,1733251805543,3098.61029023,0.00027734,2]
[344055764,1733251805566,3054.29744915,0.00027734,2]
[344055765,1733251805591,1117.24838777,0.00027734,2]
[344055766,1733251805617,3110.37429354,0.00027734,2]
[344055767,1733251805646,3095.4353277,0.00027734,2]
[344055768,1733251805671,3133.77061231,0.00027734,2]
[344055769,1733251805695,573.22264649,0.00027734,2]
[344055804,1733251832178,-300.0,0.00028708,2]
[344055805,1733251832189,-300.0,0.00028708,2]
[344055806,1733251832201,-15994.0,0.00028708,2]
[344055807,1733251832211,-5478.91840705,0.00028718,2]
[344055808,1733251832221,-165.820536,0.00028818,2]
[344055809,1733251832231,-5478.91840702,0.00029031,2]
[344055810,1733251832240,-373.9491724,0.00029178,30]
[344055811,1733251832250,-305.3460728,0.00029178,30]
[344055813,1733251832260,-426.2968078,0.00029178,30]
[344055814,1733251832269,-5478.91840702,0.00029343,2]
[344055816,1733251832279,-201.493723,0.00029388,2]
[344055818,1733251832288,-5478.91840702,0.00029656,2]
[344055820,1733251832299,-644.77327364,0.00029785,2]
[344055821,1733251832308,-5478.91840702,0.00029969,2]
[344055822,1733251832317,-605.0,0.0003,20]
[344055823,1733251832327,-605.0,0.0003,20]
[344055824,1733251832338,-605.0,0.0003,20]
[344055827,1733251832348,-605.0,0.0003,20]
[344055828,1733251832358,-621.0,0.0003,2]
[344055829,1733251832368,-207.27246428,0.0003,10]
[344055830,1733251832378,-155.0,0.0003,2]
[344055831,1733251832392,-1205.05432852,0.00030036,2]
[344055832,1733251832403,-26215.59988686,0.000301,7]
[344055833,1733251832413,-500.0,0.000301,32]
[344055834,1733251832425,-296.91890773,0.000301,7]
[344055835,1733251832436,-296.91890773,0.000301,7]
[344055836,1733251832445,-748.08,0.00030125,3]
[344055837,1733251832455,-850.97,0.00030125,10]
[344055838,1733251832467,-1622.74,0.00030125,10]
[344055839,1733251832477,-14595.99434394,0.00030134,2]
[344055840,1733251832487,-500.0,0.00030135,2]
[344055841,1733251832497,-166.57622243,0.00030135,2]
[344055842,1733251832506,-500.0,0.00030135,2]
[344055843,1733251832516,-169.5832442,0.00030135,2]
[344055844,1733251832526,-500.0,0.00030135,2]
[344055845,1733251832535,-500.0,0.00030135,2]
[344055846,1733251832546,-500.0,0.00030135,2]
[344055847,1733251832556,-500.0,0.00030135,2]
[344055848,1733251832566,-500.0,0.00030135,2]
[344055849,1733251832575,-500.0,0.00030135,2]
[344055850,1733251832586,-500.0,0.00030135,2]
[344055851,1733251832596,-500.0,0.00030135,2]
[344055852,1733251832606,-500.0,0.00030135,2]
[344055853,1733251832617,-500.0,0.00030135,2]
[344055854,1733251832627,-479.97647131,0.00030135,2]
[344055855,1733251832637,-157.3088217,0.00030135,2]
[344055856,1733251832647,-500.0,0.00030135,2]
[344055857,1733251832659,-500.0,0.00030135,2]
[344055858,1733251832669,-235.07444006,0.00030135,2]
[344055859,1733251832678,-499.99999999,0.00030135,2]
[344055860,1733251832688,-264.1509159,0.00030135,2]
[344055861,1733251832698,-500.0,0.00030135,2]
[344055862,1733251832708,-280.34760002,0.00030135,2]
[344055863,1733251832717,-181.37821576,0.00030135,2]
[344055864,1733251832727,-547.15088925,0.00030135,2]
[344055865,1733251832737,-408.55941072,0.00030135,2]
[344055866,1733251832747,-279.71551791,0.00030135,2]
[344055867,1733251832757,-244.98423537,0.00030135,2]
[344055868,1733251832767,-225.73019846,0.00030135,2]
[344055869,1733251832776,-211.95740136,0.00030135,2]
[344055870,1733251832786,-500.0,0.00030135,2]
[344055871,1733251832796,-500.0,0.00030135,2]
[344055872,1733251832806,-247.92953167,0.00030135,2]
[344055873,1733251832816,-164.01463206,0.00030135,2]
[344055874,1733251832827,-500.0,0.00030135,2]
[344055875,1733251832837,-185.333069,0.00030135,7]
[344055876,1733251832847,-151.0,0.00030136,7]
[344055877,1733251832857,-181.380872,0.00030136,7]
[344055878,1733251832867,-152.082776,0.00030136,7]
[344055879,1733251832877,-467.82329849,0.00030136,7]
[344055880,1733251832887,-151.0,0.00030136,7]
[344055881,1733251832897,-151.0,0.00030136,7]
[344055882,1733251832910,-151.0,0.00030136,7]
[344055883,1733251832919,-151.0,0.00030136,7]
[344055884,1733251832929,-151.94246,0.00030136,7]
[344055885,1733251832939,-151.0,0.00030136,7]
[344055886,1733251832948,-151.0,0.00030136,7]
[344055887,1733251832958,-151.0,0.00030136,7]
[344055888,1733251832969,-169.724184,0.00030136,7]
[344055889,1733251832979,-500.0,0.00030136,2]
[344055890,1733251832989,-500.0,0.00030136,2]
[344055891,1733251832999,-500.0,0.00030136,2]
[344055892,1733251833008,-500.0,0.00030136,2]
[344055893,1733251833019,-263.90883388,0.00030136,2]
[344055894,1733251833029,-406.62474428,0.00030136,7]
[344055895,1733251833040,-151.0,0.00030136,7]
[344055896,1733251833050,-151.0,0.00030136,7]
[344055897,1733251833060,-151.0,0.00030136,7]
[344055898,1733251833071,-151.0,0.00030136,7]
[344055899,1733251833081,-151.0,0.00030136,7]
[344055900,1733251833091,-151.0,0.00030136,7]
[344055901,1733251833100,-151.0,0.00030136,7]
[344055902,1733251833110,-151.0,0.00030136,7]
[344055903,1733251833120,-151.0,0.00030136,7]
[344055904,1733251833130,-151.0,0.00030136,7]
[344055905,1733251833139,-151.0,0.00030136,7]
[344055906,1733251833151,-151.0,0.00030136,7]
[344055907,1733251833161,-239.15219941,0.00030136,7]
[344055908,1733251833171,-500.0,0.00030136,7]
[344055909,1733251833180,-500.0,0.00030136,7]
[344055910,1733251833190,-155.38,0.00030136,7]
[344055911,1733251833199,-500.0,0.00030136,7]
[344055912,1733251833209,-500.0,0.00030136,7]
[344055913,1733251833219,-500.0,0.00030136,7]
[344055914,1733251833229,-500.0,0.00030136,7]
[344055915,1733251833238,-500.0,0.00030136,7]
[344055916,1733251833248,-199.13,0.00030136,7]
[344055917,1733251833257,-460.92762151,0.00030136,2]
[344055918,1733251833267,-500.0,0.00030136,7]
[344055919,1733251833276,-500.0,0.00030136,7]
[344055920,1733251833286,-500.0,0.00030136,7]
[344055921,1733251833296,-151.0,0.00030136,7]
[344055922,1733251833306,-151.0,0.00030136,7]
[344055923,1733251833315,-151.0,0.00030136,7]
[344055924,1733251833324,-151.0,0.00030136,7]
[344055925,1733251833334,-151.0,0.00030136,7]
[344055926,1733251833344,-151.0,0.00030136,7]
[344055927,1733251833354,-151.0,0.00030136,7]
[344055928,1733251833364,-500.0,0.00030136,7]
[344055929,1733251833375,-500.0,0.00030136,7]
[344055930,1733251833391,-500.0,0.00030136,7]
[344055931,1733251833402,-510.71880663,0.00030136,7]
[344055932,1733251833412,-500.0,0.00030136,7]
[344055933,1733251833421,-500.0,0.00030136,7]
[344055934,1733251833431,-500.0,0.00030136,7]
[344055935,1733251833441,-500.0,0.00030136,7]
[344055936,1733251833450,-500.0,0.00030136,7]
[344055937,1733251833461,-500.0,0.00030136,7]
[344055938,1733251833471,-500.0,0.00030136,7]
[344055939,1733251833481,-500.0,0.00030136,7]
[344055940,1733251833491,-500.0,0.00030136,7]
[344055941,1733251833500,-500.0,0.00030136,7]
[344055942,1733251833510,-500.0,0.00030136,7]
[344055943,1733251833520,-500.0,0.00030136,7]
[344055944,1733251833530,-500.0,0.00030136,7]
[344055945,1733251833540,-500.0,0.00030136,7]
[344055946,1733251833550,-500.0,0.00030136,7]
[344055947,1733251833560,-500.0,0.00030136,7]
[344055948,1733251833572,-500.0,0.00030136,7]
[344055949,1733251833582,-500.0,0.00030136,7]
[344055950,1733251833592,-571.52,0.00030136,7]
[344055951,1733251833601,-152.126907,0.00030136,7]
[344055952,1733251833611,-151.0,0.00030136,2]
[344055953,1733251833621,-288.408685,0.00030136,7]
[344055954,1733251833632,-228.92709,0.00030136,7]
[344055955,1733251833642,-167.15,0.00030136,7]
[344055956,1733251833654,-500.0,0.00030136,7]
[344055957,1733251833667,-202.69542411,0.00030136,7]
[344055958,1733251833679,-500.0,0.00030136,7]
[344055959,1733251833689,-244.71518095,0.00030136,7]
[344055960,1733251833780,-500.0,0.00030136,7]
[344055961,1733251833790,-500.0,0.00030136,7]
[344055962,1733251833800,-186.761242,0.00030136,7]
[344055963,1733251833811,-500.0,0.00030136,7]
[344055964,1733251833821,-500.0,0.00030136,7]
[344055965,1733251833831,-274.67196264,0.00030136,7]
[344055966,1733251833841,-540.36,0.00030136,7]
[344055967,1733251833851,-165.000298,0.00030136,7]
[344055968,1733251833861,-153.395047,0.00030136,7]
[344055969,1733251833871,-150.60243365,0.00030136,7]
[344055970,1733251833881,-500.0,0.00030136,7]
[344055971,1733251833891,-150.21,0.00030136,7]
[344055972,1733251833901,-274.49413926,0.00030136,7]
[344055973,1733251833911,-152.22478694,0.00030136,7]
[344055974,1733251833921,-500.0,0.00030136,7]
[344055975,1733251833931,-500.0,0.00030136,7]
[344055976,1733251833941,-500.0,0.00030136,7]
[344055977,1733251833951,-500.0,0.00030136,7]
[344055978,1733251833961,-500.0,0.00030136,7]
[344055979,1733251833971,-379.62,0.00030136,7]
[344055980,1733251833981,-296.91890773,0.00030136,7]